bitfinex-derivatives/quotes_SOLF0:USTF0_20250307
["timestamp","ask_amount","ask_price","bid_price","bid_amount"]
[1741365977890,0.04996694,143.41,143.38,38.35178485]
[1741365978285,0.04996694,143.41,143.4,6.9733]
[1741365980786,0.04996694,143.41,143.38,0.04937966]
[1741365981185,6.9753,143.36,143.32,6.9769]
[1741365981583,47.5894,143.4,143.29,247.44240519]
[1741365981790,47.5894,143.4,143.33,38.44658973]
[1741365982188,6.9749,143.37,143.35,0.03714279]
[1741365982395,0.04914159,143.38,143.35,0.03714279]
[1741365982797,7.02374159,143.38,143.35,0.03714279]
[1741365982995,0.04914159,143.38,143.35,0.03714279]
[1741365984292,0.04914159,143.38,143.3,191.68241891]
[1741365984493,0.04914159,143.38,143.29,38.44658973]
[1741365984687,38.30240519,143.38,143.29,38.44658973]
[1741365985401,38.35195874,143.35,143.28,76.92379562]
[1741365985588,39.76,143.34,143.27,96.6601315]
[1741365985994,38.34678725,143.32,143.27,96.6601315]
[1741365986599,6.9792,143.28,143.27,96.6601315]
[1741365987190,39.81253774,143.29,143.27,96.6601315]
[1741365987390,0.05253774,143.29,143.27,96.6601315]
[1741365988004,0.05253774,143.29,143.22,38.30240519]
[1741365988498,0.05253774,143.29,143.22,42.02860519]
[1741365988890,0.05253774,143.29,143.26,6.9799]
[1741365989092,0.05253774,143.29,143.25,38.30240519]
[1741365989292,0.05253774,143.29,143.23,39.76]
[1741365989596,0.05253774,143.29,143.22,3.7262]
[1741365990193,0.05253774,143.29,143.22,42.02860519]
[1741365990795,0.05253774,143.29,143.25,38.30240519]
[1741365991097,0.05253774,143.29,143.22,42.02860519]
[1741365991294,39.76,143.28,143.21,0.2611]
[1741365991494,39.76,143.28,143.2,10.9924]
[1741365991802,0.04795215,143.25,143.2,4.0094]
[1741365992001,6.9816,143.23,143.2,4.0094]
[1741365992201,0.04795215,143.25,143.2,4.0094]
[1741365992606,6.9812,143.24,143.2,10.9921]
[1741365992998,0.04795215,143.25,143.2,4.0094]
[1741365993302,0.04795215,143.25,143.24,6.9811]
[1741365993497,39.76,143.32,143.22,38.30240519]
[1741365993693,39.76,143.32,143.25,38.30240519]
[1741365993894,11.7327,143.37,143.28,38.30240519]
[1741365994097,39.74,143.4,143.28,38.30240519]
[1741365994297,6.9741,143.39,143.31,38.30240519]
[1741365994502,3.9523,143.42,143.34,38.30240519]
[1741365994695,39.74,143.45,143.34,38.35035735]
[1741365995097,39.74,143.45,143.34,38.30240519]
[1741365995296,39.74,143.45,143.37,38.30240519]
[1741365995497,39.74,143.45,143.38,3.9503]
[1741365995903,0.05077822,143.43,143.4,0.05282698]
[1741365996709,6.9689,143.5,143.4,38.35523217]
[1741365997004,6.967,143.53,143.46,6.9704]
[1741365997204,6.967,143.53,143.43,38.30240519]
[1741365997205,11.2705,143.56,143.43,38.30240519]
[1741365997405,39.74,143.55,143.43,38.30240519]
[1741365997704,51.0105,143.56,143.46,38.30240519]
[1741365997999,0.04803419,143.5,143.48,0.05238884]
[1741366001502,3.52803419,143.5,143.39,3.8595]
[1741366001703,3.6691,143.49,143.39,3.8595]
[1741366002005,3.6691,143.49,143.43,6.9717]
[1741366002006,6.9693,143.49,143.43,6.9717]
[1741366002404,6.9693,143.49,143.42,38.30240519]
[1741366002705,6.9704,143.46,143.45,0.05274637]
[1741366002904,39.68,143.47,143.39,3.8595]
[1741366004109,0.04741866,143.44,143.42,0.04156557]
[1741366004294,6.9719,143.43,143.42,0.04156557]
[1741366004997,0.04741866,143.44,143.42,0.04156557]
[1741366006006,0.04741866,143.44,143.42,7.01386557]
[1741366006204,39.66,143.51,143.42,0.04156557]
[1741366006504,39.66,143.51,143.44,38.30240519]
[1741366006903,39.66,143.51,143.41,38.30240519]
[1741366007101,39.66,143.51,143.43,6.9715]
[1741366007308,39.66,143.51,143.41,38.30240519]
[1741366007505,0.04496777,143.48,143.46,0.05109925]
[1741366008000,0.04496777,143.48,143.38,42.15430519]
[1741366008510,4.0234,143.5,143.38,42.15430519]
[1741366009410,0.0442081,143.45,143.43,0.03788499]
[1741366009613,236.3001,143.55,143.44,38.30240519]
[1741366009809,236.3001,143.55,143.44,3.9886]
[1741366010009,6.9707,143.46,143.42,46.612]
[1741366010313,39.64,143.54,143.42,39.64]
[1741366010710,0.05351477,143.49,143.47,0.04926773]
[1741366011010,77.94240519,143.54,143.47,0.04926773]
[1741366011206,6.9694,143.48,143.47,6.773e-05]
[1741366011606,48.75180519,143.48,143.47,6.773e-05]
[1741366011807,56.21550519,143.48,143.47,6.773e-05]
[1741366013106,38.30240519,143.45,143.35,3.687]
[1741366013312,39.64,143.44,143.35,3.687]
[1741366013515,6.9744,143.38,143.35,3.687]
[1741366013709,39.64,143.44,143.35,3.687]
[1741366014217,0.05154234,143.41,143.38,0.03282535]
[1741366014905,6.9738,143.39,143.38,0.03282535]
[1741366018722,6.9738,143.39,143.38,2.535e-05]
[1741366018913,6.9765,143.34,143.31,7.8411]
[1741366019112,3.859,143.41,143.31,7.8411]
[1741366019318,3.859,143.41,143.32,6.9769]
[1741366019520,6.9757,143.36,143.31,7.8411]
[1741366019813,3.859,143.41,143.31,7.8411]
[1741366020125,0.05234059,143.35,143.28,213.2436]
[1741366020312,0.05234059,143.35,143.3,6.9781]
[1741366020510,0.05234059,143.35,143.28,4.0236]
[1741366020806,0.05234059,143.35,143.25,7.543]
[1741366021011,39.62,143.36,143.25,7.543]
[1741366021211,17.8052,143.41,143.25,7.543]
[1741366021212,3.859,143.41,143.28,38.30240519]
[1741366021421,3.859,143.41,143.31,38.30240519]
[1741366021612,0.04754816,143.36,143.29,39.62]
[1741366022216,0.04754816,143.36,143.3,4.0153]
[1741366022919,0.04754816,143.36,143.34,6.9759]
[1741366023220,0.04754816,143.36,143.3,4.0153]
[1741366023823,0.04754816,143.36,143.35,6.9757]
[1741366024020,11.8537,143.45,143.34,38.30240519]
[1741366024215,11.8537,143.45,143.35,3.8998]
[1741366024421,39.6,143.44,143.38,6.9742]
[1741366024822,6.9724,143.42,143.38,6.9742]
[1741366025117,0.0471478,143.41,143.39,0.04754817]
[1741366025515,0.0471478,143.41,143.39,7.02104817]
[1741366025716,0.0471478,143.41,143.39,0.04754817]
[1741366026220,0.0471478,143.41,143.4,6.9733]
[1741366026419,196.8154,143.49,143.39,0.04754817]
[1741366026420,3.8154,143.49,143.39,0.04754817]
[1741366026619,43.4154,143.49,143.37,38.30240519]
[1741366027523,0.04661162,143.44,143.42,0.05078807]
[1741366027726,43.4154,143.49,143.42,0.05078807]
[1741366027916,0.04759199,143.44,143.42,0.05078807]
[1741366028124,43.4154,143.49,143.42,0.05078807]
[1741366028625,6.9717,143.44,143.42,0.05078807]
[1741366028826,0.04878757,143.47,143.42,0.05078807]
[1741366029125,6.9719,143.43,143.42,0.05078807]
[1741366029324,43.4154,143.49,143.42,0.05078807]
[1741366029525,0.04457012,143.44,143.42,0.05078807]
[1741366029822,6.9719,143.43,143.42,0.05078807]
[1741366031329,0.04433995,143.44,143.42,0.05078807]
[1741366031829,6.9719,143.43,143.42,0.05078807]
[1741366032221,0.04433995,143.44,143.42,0.05078807]
[1741366033029,6.9719,143.43,143.42,0.05078807]
[1741366033329,6.9719,143.43,143.42,8.807e-05]
[1741366033522,46.5319,143.43,143.42,8.807e-05]
[1741366034533,50.0119,143.43,143.42,8.807e-05]
[1741366035033,57.6802,143.43,143.42,8.807e-05]
[1741366035723,6.9765,143.34,143.3,6.9782]
[1741366035926,39.56,143.37,143.27,39.56]
[1741366036123,39.56,143.37,143.29,6.9783]
[1741366036823,6.977,143.33,143.29,6.9783]
[1741366037026,6.977,143.33,143.27,39.56]
[1741366037027,0.05335094,143.34,143.32,0.0439079]
[1741366037425,7.02975094,143.34,143.32,0.0439079]
[1741366037631,0.05335094,143.34,143.32,7.0209079]
[1741366037932,0.05335094,143.34,143.32,0.0439079]
[1741366038129,39.54,143.41,143.32,0.0439079]
[1741366038336,39.54,143.41,143.35,6.9755]
[1741366038534,39.54,143.41,143.29,38.30240519]
[1741366038735,39.54,143.41,143.35,6.9754]
[1741366038941,39.54,143.41,143.29,38.30240519]
[1741366039339,0.05368047,143.36,143.34,7.0228939]
[1741366039538,6.9743,143.38,143.34,0.0470939]
[1741366039738,0.0494478,143.36,143.34,0.0470939]
[1741366040036,39.54,143.41,143.34,0.0470939]
[1741366040829,50.06720519,143.46,143.34,0.0470939]
[1741366041029,39.54,143.45,143.39,6.9737]
[1741366041339,0.04435371,143.41,143.39,0.05291252]
[1741366041639,209.3,143.5,143.39,0.05291252]
[1741366041832,39.54,143.49,143.4,38.30240519]
[1741366042133,6.9698,143.48,143.4,38.30240519]
[1741366042331,39.54,143.51,143.41,4.014]
[1741366042731,6.969,143.49,143.45,6.9706]
[1741366042926,39.52,143.53,143.43,38.30240519]
[1741366043138,11.6461,143.55,143.45,0.05280145]
[1741366043329,39.52,143.57,143.45,0.05280145]
[1741366043528,38.30240519,143.58,143.46,38.30240519]
[1741366043725,6.9669,143.54,143.48,6.9693]
[1741366043926,39.52,143.57,143.46,38.30240519]
[1741366044138,39.52,143.57,143.44,39.52]
[1741366044343,0.0507841,143.53,143.5,0.04855378]
[1741366045544,6.968,143.51,143.5,0.04855378]
[1741366046243,6.9675,143.52,143.5,0.04855378]
[1741366046945,0.0507841,143.53,143.5,0.04855378]
[1741366048838,0.0507841,143.53,143.5,3.74075378]
[1741366049748,6.9676,143.52,143.5,3.74075378]
[1741366050039,0.0507841,143.53,143.5,0.04855378]
[1741366050245,7.0178841,143.53,143.5,0.04855378]
[1741366050844,6.9676,143.52,143.5,0.04855378]
[1741366051141,0.0507841,143.53,143.5,0.04855378]
[1741366051551,6.968,143.51,143.5,0.04855378]
[1741366051847,39.46,143.51,143.38,38.30240519]
[1741366052049,38.30240519,143.5,143.39,3.9522]
[1741366052549,6.9733,143.4,143.39,3.9522]
[1741366053447,6.9733,143.4,143.37,7.8582]
[1741366053448,6.9743,143.38,143.37,7.8582]
[1741366053647,39.46,143.46,143.37,7.8582]
[1741366054149,6.9742,143.39,143.37,7.8582]
[1741366054652,6.9733,143.41,143.37,7.8582]
[1741366054847,39.46,143.46,143.37,7.8582]
[1741366055351,6.9736,143.4,143.37,7.8582]
[1741366056048,0.05339805,143.4,143.37,7.90744399]
[1741366058347,39.44,143.5,143.38,77.74240519]
[1741366059054,39.44,143.5,143.41,38.30240519]
[1741366059643,39.44,143.54,143.41,38.30240519]
[1741366059852,6.969,143.49,143.46,6.9703]
[1741366060253,39.44,143.54,143.41,38.30240519]
[1741366060457,6.9709,143.46,143.42,6.9721]
[1741366060652,38.30240519,143.52,143.41,38.30240519]
[1741366061053,6.9708,143.46,143.43,6.9718]
[1741366061759,6.9708,143.46,143.42,6.972]
[1741366062170,39.42,143.48,143.38,38.30240519]
[1741366062959,39.42,143.48,143.39,6.9735]
[1741366063159,6.9709,143.45,143.38,38.30240519]
[1741366063361,6.9709,143.45,143.42,6.9721]
[1741366063560,39.42,143.48,143.39,4.0064]
[1741366063763,6.9712,143.45,143.39,4.0064]
[1741366064163,6.9712,143.45,143.42,6.9723]
[1741366064365,6.9709,143.45,143.39,4.0064]
[1741366064762,39.42,143.48,143.41,6.9724]
[1741366064969,6.9717,143.44,143.41,6.9724]
[1741366065172,39.42,143.48,143.39,4.0064]
[1741366065963,39.42,143.48,143.42,6.972]
[1741366066167,6.9687,143.5,143.41,77.72240519]
[1741366066364,0.05265115,143.46,143.44,0.05003357]
[1741366066669,39.42,143.53,143.43,6.9717]
[1741366066865,7.02161014,143.46,143.44,0.0485149]
[1741366067073,39.42,143.53,143.41,77.72240519]
[1741366067370,0.05216237,143.46,143.44,0.04601701]
[1741366067562,39.42,143.53,143.46,6.9699]
[1741366067770,0.05058332,143.46,143.44,0.04929084]
[1741366067966,39.4,143.52,143.42,38.30240519]
[1741366068274,6.9712,143.45,143.44,0.05313711]
[1741366068474,39.4,143.52,143.44,0.05313711]
[1741366068668,0.04541718,143.46,143.45,6.9705]
[1741366068968,0.05048241,143.47,143.41,39.42]
[1741366069171,0.05048241,143.47,143.44,0.04931681]
[1741366069368,0.05048241,143.47,143.46,6.9704]
[1741366069566,0.05048241,143.47,143.44,0.04931681]
[1741366069773,0.05048241,143.47,143.46,6.9704]
[1741366070274,0.05048241,143.47,143.44,0.04931681]
[1741366072173,7.02058241,143.47,143.44,0.04931681]
[1741366072774,6.9709,143.45,143.44,0.04931681]
[1741366072973,0.05048241,143.47,143.44,0.04931681]
[1741366073368,6.9709,143.45,143.44,0.04931681]
[1741366074467,0.05048241,143.47,143.44,0.04931681]
[1741366075479,6.9709,143.45,143.44,0.04931681]
[1741366076377,6.9705,143.46,143.44,0.04931681]
[1741366077278,0.05048241,143.47,143.44,0.04931681]
[1741366077477,0.05048241,143.47,143.44,7.02061681]
[1741366077781,0.05048241,143.47,143.44,0.04931681]
[1741366078279,6.9709,143.45,143.44,0.04931681]
[1741366080378,62.90369002,143.47,143.35,4.0364]
[1741366080580,62.85320761,143.47,143.34,209.2]
[1741366080774,23.51320761,143.44,143.33,7.5135]
[1741366081381,272.05320761,143.47,143.33,7.5135]
[1741366081682,0.04904831,143.4,143.37,5.316e-05]
[1741366081877,39.34,143.39,143.3,4.0364]
[1741366082476,39.34,143.39,143.28,216.7333]
[1741366082679,23.51320761,143.35,143.23,23.51320761]
[1741366082883,39.34,143.34,143.21,11.2996]
[1741366083180,23.51320761,143.29,143.17,100.8145218]
[1741366083382,23.51320761,143.26,143.17,77.30131419]
[1741366083683,43.287,143.28,143.16,115.9519712]
[1741366083684,23.51320761,143.2,143.16,115.9519712]
[1741366084184,0.04775283,143.19,143.17,0.05284171]
[1741366084580,39.32,143.23,143.16,115.9519712]
[1741366084788,0.04851832,143.19,143.17,0.04717762]
[1741366085581,39.34,143.18,143.17,0.04717762]
[1741366086982,42.84,143.18,143.17,0.04717762]
[1741366087290,73.33720761,143.18,143.17,7.762e-05]
[1741366087989,39.34,143.18,143.17,7.762e-05]
[1741366088289,42.84,143.18,143.17,7.762e-05]
[1741366088688,49.824,143.18,143.17,7.762e-05]
[1741366090383,42.84,143.18,143.06,11.6762]
[1741366090591,38.39417212,143.15,143.06,7.9099]
[1741366090794,38.39417212,143.15,143.06,3.938]
[1741366091090,6.9873,143.12,143.06,3.938]
[1741366091289,39.34,143.12,143.06,3.938]
[1741366091484,1.21623038,143.2,143.09,38.39417212]
[1741366091793,0.04908252,143.16,143.15,38.39417212]
[1741366092093,115.53583349,143.24,143.2,6.9826]
[1741366092689,76.17583349,143.24,143.18,38.39417212]
[1741366092887,76.17583349,143.24,143.21,38.39417212]
[1741366093094,102.12113381,143.24,143.21,38.39417212]
[1741366093287,27.86564982,143.24,143.23,6.9816]
[1741366093492,6.04744982,143.24,143.23,6.9816]
[1741366093797,179.81063352,143.25,143.24,6.9811]
[1741366093984,179.81063352,143.25,143.22,38.39417212]
[1741366094386,179.85807395,143.25,143.23,39.34]
[1741366096293,179.85807395,143.25,143.22,38.44558385]
[1741366096495,179.85807395,143.25,143.22,0.05141173]
[1741366096986,0.04744043,143.25,143.22,0.05141173]
[1741366097591,6.9811,143.24,143.22,0.05141173]
[1741366097892,0.04744043,143.25,143.22,0.05141173]
[1741366098798,6.9815,143.24,143.22,0.05141173]
[1741366099097,0.04744043,143.25,143.22,0.05141173]
[1741366099598,6.9815,143.24,143.22,0.05141173]
[1741366099798,0.04744043,143.25,143.22,0.05141173]
[1741366102096,39.34744043,143.25,143.16,209.52]
[1741366102400,38.39417212,143.24,143.12,38.39417212]
[1741366102600,6.9865,143.13,143.09,38.39417212]
[1741366102794,39.3,143.18,143.09,38.39417212]
[1741366103394,39.3,143.18,143.05,39.3]
[1741366103395,0.04592338,143.15,143.12,0.04879853]
[1741366103595,6.9865,143.13,143.12,0.04879853]
[1741366104400,6.989,143.08,143.04,39.3]
[1741366104602,39.3,143.13,143.04,39.3]
[1741366105201,39.3,143.13,143.07,38.39417212]
[1741366105600,0.04416265,143.11,143.09,0.04723631]
[1741366107205,6.9879,143.1,143.09,0.04723631]
[1741366108210,6.9905,143.05,143.01,38.39417212]
[1741366108406,6.9905,143.05,143.0,39.28]
[1741366108407,39.28,143.07,142.97,209.56]
[1741366108709,39.28,143.07,142.98,38.39417212]
[1741366109307,0.05054971,143.04,142.98,38.39417212]
[1741366109808,6.9915,143.03,142.98,38.39417212]
[1741366110008,0.05054971,143.04,142.98,38.39417212]
[1741366112208,0.05054971,143.04,143.02,6.9918]
[1741366112409,0.05054971,143.04,143.01,38.39417212]
[1741366113609,0.05054971,143.04,142.98,38.39417212]
[1741366114106,6.9916,143.03,142.98,38.39417212]
[1741366114508,6.9916,143.03,142.97,209.56]
[1741366114802,6.9919,143.02,142.97,209.56]
[1741366115009,39.28,143.06,142.93,23.65963713]
[1741366115210,39.28,143.06,142.87,191.0]
[1741366115211,23.70513545,143.01,142.87,191.0]
[1741366115410,47.2952,143.0,142.87,23.65963713]
[1741366115609,0.04421975,142.95,142.84,23.65963713]
[1741366115813,39.28,142.95,142.86,6.9994]
[1741366116016,0.04414803,142.91,142.86,6.9994]
[1741366116212,0.04414803,142.91,142.84,23.65963713]
[1741366116516,0.04414803,142.91,142.89,6.9981]
[1741366116820,0.04414803,142.91,142.87,38.49957393]
[1741366117219,0.04414803,142.91,142.85,38.49957393]
[1741366117723,0.04414803,142.91,142.87,6.9988]
[1741366118223,0.04414803,142.91,142.85,38.49957393]
[1741366118624,0.04414803,142.91,142.86,6.9993]
[1741366118818,0.04414803,142.91,142.85,38.49957393]
[1741366120121,0.04414803,142.91,142.88,6.9986]
[1741366121024,0.04414803,142.91,142.85,38.49957393]
[1741366121331,39.26,142.9,142.76,38.49957393]
[1741366121526,46.22707393,142.89,142.73,38.49957393]
[1741366121831,7.0023,142.81,142.73,38.49957393]
[1741366122131,39.28,142.83,142.76,7.0043]
[1741366122429,39.28,142.85,142.76,7.0043]
[1741366122630,0.04813416,142.81,142.76,7.0043]
[1741366122830,0.04813416,142.81,142.76,38.49957393]
[1741366123126,6.9987,142.88,142.79,38.49957393]
[1741366123333,3.8481,142.89,142.8,39.26]
[1741366123621,6.9984,142.89,142.82,38.49957393]
[1741366123829,4.0083,142.93,142.82,38.49957393]
[1741366124415,0.05063268,142.89,142.86,0.04813416]
[1741366124616,77.83020661,142.89,142.79,191.0]
[1741366124841,38.49957393,142.86,142.73,38.49957393]
[1741366125023,8.0043,142.85,142.76,7.0044]
[1741366125329,39.26,142.84,142.73,38.49957393]
[1741366125527,39.26,142.84,142.73,45.50517393]
[1741366125830,7.0034,142.79,142.73,38.49957393]
[1741366126329,0.0467058,142.8,142.73,38.49957393]
[1741366126624,0.0467058,142.8,142.7,248.39957393]
[1741366126821,39.26,142.79,142.7,248.39957393]
[1741366127229,0.04851426,142.76,142.7,248.39957393]
[1741366128220,0.04851426,142.76,142.72,7.0065]
[1741366128430,0.04851426,142.76,142.7,248.39957393]
[1741366131128,0.04851426,142.76,142.66,38.49957393]
[1741366131333,7.0061,142.73,142.68,7.0082]
[1741366131534,0.04678202,142.72,142.66,38.49957393]
[1741366132725,0.04678202,142.72,142.63,248.53957393]
[1741366133121,39.26,142.74,142.66,7.0092]
[1741366133122,7.0072,142.71,142.66,7.0092]
[1741366133431,0.05238463,142.69,142.63,248.53957393]
[1741366134128,0.05238463,142.69,142.68,7.0085]
[1741366136937,8.463e-05,142.69,142.68,7.0085]
[1741366137340,8.463e-05,142.69,142.68,10.5085]
[1741366137636,7.0033,142.79,142.75,7.0046]
[1741366137936,3.9599,142.81,142.7,38.49957393]
[1741366138139,39.26,142.8,142.69,38.49957393]
[1741366138639,0.05006454,142.76,142.73,7.05943313]
[1741366138840,0.05006454,142.76,142.73,0.05363313]
[1741366139725,7.0056,142.74,142.73,0.05363313]
[1741366139930,0.05006454,142.76,142.66,38.49957393]
[1741366140130,38.49957393,142.77,142.66,38.49957393]
[1741366140342,38.49957393,142.77,142.64,38.49957393]
[1741366140734,38.49957393,142.8,142.67,38.49957393]
[1741366140930,39.24,142.77,142.67,38.49957393]
[1741366141131,0.05191678,142.75,142.67,38.49957393]
[1741366141330,7.0058,142.74,142.71,7.007]
[1741366141532,0.05191678,142.75,142.67,38.49957393]
[1741366141843,39.24,142.77,142.67,38.49957393]
[1741366142140,0.05104149,142.73,142.67,38.49957393]
[1741366143236,0.05104149,142.73,142.72,7.0065]
[1741366143442,3.9599,142.81,142.7,38.49957393]
[1741366143631,3.9599,142.81,142.74,38.49957393]
[1741366143834,3.9599,142.81,142.68,244.2563]
[1741366144031,3.9599,142.81,142.66,38.49957393]
[1741366144032,42.45947393,142.81,142.65,39.24]
[1741366144235,42.45947393,142.81,142.67,38.49957393]
[1741366144433,3.9599,142.81,142.7,38.49957393]
[1741366144645,0.04651196,142.75,142.73,0.0452882]
[1741366144940,38.49957393,142.78,142.64,38.49957393]
[1741366145242,7.0104,142.65,142.58,7.013]
[1741366145643,39.22,142.67,142.58,7.013]
[1741366145845,39.22,142.67,142.57,38.49957393]
[1741366146035,0.04771862,142.64,142.57,38.49957393]
[1741366146441,7.0119,142.61,142.53,0.1131]
[1741366146639,0.04771862,142.64,142.52,401.18]
[1741366146939,0.05371964,142.59,142.52,401.18]
[1741366147347,0.05371964,142.59,142.52,210.18]
[1741366148048,7.0136,142.58,142.52,210.18]
[1741366148244,0.05371964,142.59,142.48,38.49957393]
[1741366148748,0.04827156,142.55,142.47,104.24785309]
[1741366148940,39.26827156,142.55,142.47,104.24785309]
[1741366149336,46.21957393,142.54,142.47,85.96075309]
[1741366149537,46.21957393,142.54,142.47,79.86465309]
[1741366149851,38.49957393,142.51,142.47,67.67105309]
[1741366150046,38.49957393,142.51,142.37,38.49957393]
[1741366150047,39.22,142.5,142.37,38.49957393]
[1741366150241,0.0470732,142.52,142.43,38.49957393]
[1741366150437,4.0088,142.54,142.44,4.0002]
[1741366150641,0.04966635,142.49,142.48,7.0183]
[1741366150838,38.49957393,142.63,142.47,39.22]
[1741366151056,42.9312,142.64,142.5,38.49957393]
[1741366151348,42.9312,142.64,142.53,38.49957393]
[1741366151549,39.22,142.64,142.54,4.0002]
[1741366151739,39.22,142.64,142.56,38.49957393]
[1741366151938,403.36,142.79,142.59,38.49957393]
[1741366152148,77.71957393,142.73,142.59,38.49957393]
[1741366152348,77.71957393,142.73,142.62,38.49957393]
[1741366152549,77.71957393,142.73,142.63,4.0002]
[1741366152739,74.30925887,142.7,142.63,4.0002]
[1741366152945,74.30925887,142.7,142.67,7.0085]
[1741366153147,74.30925887,142.7,142.65,38.49957393]
[1741366153347,74.35369053,142.7,142.67,0.0478593]
[1741366153655,74.35369053,142.7,142.69,7.008]
[1741366153849,74.35369053,142.7,142.67,39.2678593]
[1741366154652,68.25779053,142.7,142.67,39.2678593]
[1741366154853,68.25779053,142.7,142.68,38.49957393]
[1741366155051,105.07544812,142.71,142.68,38.49957393]
[1741366155352,73.74674112,142.8,142.68,41.99957393]
[1741366155548,73.74674112,142.8,142.74,38.49957393]
[1741366156349,0.04980908,142.78,142.76,0.05339517]
[1741366156849,39.0112502,142.8,142.77,38.49957393]
[1741366157055,25.8017502,142.8,142.78,39.2]
[1741366157553,238.0494796,142.83,142.78,39.2]
[1741366157754,7.0007,142.84,142.78,39.2]
[1741366158055,0.04826235,142.82,142.78,39.2]
[1741366158252,0.04826235,142.82,142.8,0.05169343]
[1741366158459,39.18,142.88,142.8,0.05169343]
[1741366158757,7.0023,142.81,142.73,77.67957393]
[1741366158947,0.04553799,142.85,142.73,77.67957393]
[1741366159152,3.7677,142.85,142.73,77.67957393]
[1741366159354,3.7677,142.85,142.73,38.49957393]
[1741366159557,3.7162,142.84,142.73,38.49957393]
[1741366160152,0.04443379,142.8,142.77,0.05321669]
[1741366161257,0.04443379,142.8,142.79,38.49957393]
[1741366161655,0.04443379,142.8,142.79,41.99957393]
[1741366161853,3.379e-05,142.8,142.79,49.00267393]
[1741366162058,7.629,142.92,142.79,80.49914786]
[1741366162360,14.6261,142.92,142.85,6.9998]
[1741366162659,3.8613,142.92,142.84,38.49957393]
[1741366162863,46.8387,142.97,142.84,38.49957393]
[1741366163258,0.04441115,142.9,142.87,0.04881336]
[1741366163463,0.04441115,142.9,142.87,38.54838729]
[1741366163655,1.115e-05,142.9,142.87,80.54796122]
[1741366163960,1.115e-05,142.9,142.89,6.9982]
[1741366164157,1.115e-05,142.9,142.87,38.54838729]
[1741366164754,1.115e-05,142.9,142.87,77.04796122]
[1741366164964,1.115e-05,142.9,142.87,38.54838729]
[1741366165764,3.8639,143.01,142.87,271.54796122]
[1741366165964,3.8639,143.01,142.94,38.49957393]
[1741366166470,3.8639,143.01,142.92,39.12]
[1741366166855,6.9942,142.98,142.92,39.12]
[1741366167060,0.04996493,142.98,142.95,0.0443607]
[1741366169257,6.9948,142.96,142.95,0.0443607]
[1741366170467,0.04996493,142.98,142.95,0.0443607]
[1741366170962,6.9948,142.96,142.95,0.0443607]
[1741366171960,0.04996493,142.98,142.95,0.0443607]
[1741366172261,0.04996493,142.98,142.96,38.49957393]
[1741366172463,0.04996493,142.98,142.97,6.9943]
[1741366172962,0.04996493,142.98,142.95,39.1243607]
[1741366173363,6.493e-05,142.98,142.97,38.49957393]
[1741366173557,6.493e-05,142.98,142.97,45.49387393]
[1741366173767,6.493e-05,142.98,142.97,48.99387393]
[1741366174273,6.493e-05,142.98,142.97,45.49387393]
[1741366175164,6.493e-05,142.98,142.97,48.99387393]
[1741366177269,6.493e-05,142.98,142.97,236.49387393]
[1741366177472,3.8386,143.11,142.97,272.78376933]
[1741366177769,3.8327,143.13,143.07,38.49957393]
[1741366178167,3.7697,143.16,143.07,38.49957393]
[1741366178368,3.7697,143.16,143.1,38.49957393]
[1741366178771,2.221e-05,143.11,143.1,38.49957393]
[1741366178971,4.0511,143.18,143.1,38.49957393]
[1741366179273,4.0511,143.18,143.08,38.49957393]
[1741366179978,4.0511,143.18,143.12,0.04886284]
[1741366179979,0.04712793,143.14,143.12,0.04886284]
[1741366181583,0.04712793,143.14,143.12,39.04886284]
[1741366181889,2.793e-05,143.14,143.13,6.9865]
[1741366182090,3.7719,143.23,143.12,230.04886284]
[1741366182285,3.7719,143.23,143.11,38.49957393]
[1741366182686,42.27147393,143.23,143.11,38.49957393]
[1741366182884,42.27147393,143.23,143.09,248.8]
[1741366183388,0.04700606,143.17,143.15,0.05285364]
[1741366183685,3.7719,143.23,143.15,38.55242757]
[1741366183991,0.05326235,143.17,143.15,38.55242757]
[1741366184192,3.7719,143.23,143.15,38.55242757]
[1741366184883,0.05346876,143.2,143.15,38.55242757]
[1741366185187,6.984,143.19,143.15,0.05285364]
[1741366185583,6.9841,143.18,143.15,0.05285364]
[1741366185886,0.05346876,143.2,143.15,0.05285364]